fUSD/lending_fUSD_20250811
["ID","MTS","AMOUNT","RATE_DAILY","PERIOD"]
[378490189,1754886644993,-1292.83,0.00016999,2]
[378490190,1754886645002,-2940.45,0.00016999,2]
[378490191,1754886645011,-400.0,0.00016999,2]
[378490192,1754886645021,-400.0,0.00016999,2]
[378490193,1754886645030,-400.0,0.00016999,2]
[378490194,1754886645040,-400.0,0.00016999,2]
[378490195,1754886645049,-400.0,0.00016999,2]
[378490196,1754886645059,-400.0,0.00016999,2]
[378490197,1754886645070,-400.0,0.00016999,2]
[378490198,1754886645080,-400.0,0.00016999,2]
[378490199,1754886645090,-400.0,0.00016999,2]
[378490200,1754886645100,-400.0,0.00016999,2]
[378490202,1754886645197,-1244.19,0.00016999,2]
[378490204,1754886645206,-704.09,0.00016999,2]
[378490205,1754886645216,-400.0,0.00016999,2]
[378490206,1754886645225,-400.0,0.00016999,2]
[378490207,1754886645234,-400.0,0.00016999,2]
[378490208,1754886645243,-500.0,0.00016999,2]
[378490209,1754886645252,-500.0,0.00016999,2]
[378490210,1754886645261,-500.0,0.00016999,2]
[378490211,1754886645270,-500.0,0.00016999,2]
[378490212,1754886645279,-500.0,0.00016999,2]
[378490213,1754886645289,-963.23,0.00016999,2]
[378490214,1754886645298,-400.0,0.00016999,2]
[378490216,1754886645307,-500.0,0.00016999,2]
[378490217,1754886645316,-503.46,0.00016999,2]
[378490218,1754886645325,-505.67,0.00016999,2]
[378490219,1754886645335,-500.0,0.00016999,2]
[378490220,1754886645344,-500.0,0.00016999,2]
[378490221,1754886645352,-500.0,0.00016999,2]
[378490222,1754886645362,-500.0,0.00016999,2]
[378490223,1754886645371,-500.0,0.00016999,2]
[378490224,1754886645380,-500.0,0.00016999,2]
[378490225,1754886645389,-501.92611367,0.00016999,2]
[378490226,1754886645398,-400.0,0.00016999,2]
[378490227,1754886645408,-400.0,0.00016999,2]
[378490228,1754886645416,-1351.37,0.00016999,2]
[378490229,1754886645425,-400.0,0.00016999,2]
[378490230,1754886645434,-400.0,0.00016999,2]
[378490231,1754886645443,-1548.12,0.00016999,2]
[378490232,1754886645452,-478.24749965,0.00016999,2]
[378490233,1754886645461,-500.0,0.00016999,2]
[378490234,1754886645470,-500.0,0.00016999,2]
[378490235,1754886645479,-615.23665865,0.00016999,2]
[378490236,1754886645488,-400.0,0.00016999,2]
[378490237,1754886645497,-400.0,0.00016999,2]
[378490238,1754886645506,-400.0,0.00016999,2]
[378490239,1754886645515,-439.78,0.00016999,2]
[378490240,1754886645524,-400.0,0.00016999,2]
[378490241,1754886645534,-808.08,0.00016999,2]
[378490242,1754886645543,-400.0,0.00016999,2]
[378490243,1754886645552,-500.0,0.00016999,2]
[378490244,1754886645562,-500.0,0.00016999,2]
[378490245,1754886645571,-500.0,0.00016999,2]
[378490246,1754886645585,-500.0,0.00016999,2]
[378490247,1754886645594,-500.0,0.00016999,2]
[378490248,1754886645603,-1408.18,0.00016999,2]
[378490249,1754886645612,-507.02926924,0.00016999,2]
[378490250,1754886645622,-2199.24,0.00016999,2]
[378490251,1754886645632,-400.0,0.00016999,2]
[378490252,1754886645641,-400.0,0.00016999,2]
[378490253,1754886645651,-753.75,0.00016999,2]
[378490254,1754886645661,-400.0,0.00016999,2]
[378490255,1754886645670,-400.0,0.00016999,2]
[378490256,1754886645679,-400.0,0.00016999,2]
[378490257,1754886645688,-400.0,0.00016999,2]
[378490258,1754886645697,-533.78,0.00016999,2]
[378490259,1754886645707,-400.0,0.00016999,2]
[378490260,1754886645716,-400.0,0.00016999,2]
[378490261,1754886645725,-400.0,0.00016999,2]
[378490262,1754886645734,-412.49493264,0.00016999,2]
[378490263,1754886645744,-516.94,0.00016999,2]
[378490264,1754886645753,-400.0,0.00016999,2]
[378490265,1754886645762,-1025.15,0.00016999,2]
[378490266,1754886645771,-409.89774534,0.00016999,2]
[378490267,1754886645780,-400.0,0.00016999,2]
[378490268,1754886645789,-400.0,0.00016999,2]
[378490269,1754886645798,-400.0,0.00016999,2]
[378490270,1754886645807,-1428.05,0.00016999,2]
[378490271,1754886645816,-400.0,0.00016999,2]
[378490272,1754886645825,-1684.69,0.00016999,2]
[378490273,1754886645834,-400.0,0.00016999,2]
[378490274,1754886645843,-400.0,0.00016999,2]
[378490275,1754886645852,-464.28829347,0.00016999,2]
[378490276,1754886645861,-537.1806603,0.00016999,2]
[378490277,1754886645871,-400.0,0.00016999,2]
[378490278,1754886645881,-293.24063718,0.00016999,2]
[378490279,1754886645892,-1041.68,0.00016999,2]
[378490281,1754886645902,-400.0,0.00016999,2]
[378490282,1754886645912,-400.0,0.00016999,2]
[378490283,1754886645921,-1024.18,0.00016999,2]
[378490284,1754886645931,-400.0,0.00016999,2]
[378490285,1754886645941,-400.0,0.00016999,2]
[378490286,1754886645951,-400.0,0.00016999,2]
[378490287,1754886645961,-300.0,0.00016999,2]
[378490288,1754886645972,-1016.3,0.00016999,2]
[378490289,1754886645982,-475.42540731,0.00016999,2]
[378490290,1754886645991,-819.85,0.00016999,2]
[378490291,1754886646005,-403.82056069,0.00016999,2]
[378490292,1754886646014,-400.0,0.00016999,2]
[378490293,1754886646024,-401.66379107,0.00016999,2]
[378490294,1754886646034,-400.0,0.00016999,2]
[378490295,1754886646043,-1791.52,0.00016999,2]
[378490296,1754886646053,-448.18,0.00016999,2]
[378490297,1754886646065,-400.0,0.00016999,2]
[378490298,1754886646074,-400.0,0.00016999,2]
[378490299,1754886646084,-973.65,0.00016999,2]
[378490300,1754886646093,-718.62,0.00016999,2]
[378490301,1754886646104,-400.0,0.00016999,2]
[378490302,1754886646113,-400.0,0.00016999,2]
[378490303,1754886646121,-454.71,0.00016999,2]
[378490304,1754886646131,-400.0,0.00016999,2]
[378490305,1754886646140,-538.94,0.00016999,2]
[378490306,1754886646150,-420.94,0.00016999,2]
[378490307,1754886646160,-460.0,0.00016999,2]
[378490308,1754886646169,-400.0,0.00016999,2]
[378490309,1754886646179,-400.0,0.00016999,2]
[378490310,1754886646188,-464.08513095,0.00016999,2]
[378490311,1754886646197,-400.0,0.00016999,2]
[378490312,1754886646207,-400.0,0.00016999,2]
[378490313,1754886646216,-400.0,0.00016999,2]
[378490314,1754886646225,-400.0,0.00016999,2]
[378490315,1754886646234,-634.12,0.00016999,2]
[378490316,1754886646243,-400.0,0.00016999,2]
[378490317,1754886646253,-708.01,0.00016999,2]
[378490318,1754886646263,-556.52,0.00016999,2]
[378490319,1754886646272,-500.0,0.00016999,2]
[378490320,1754886646281,-500.0,0.00016999,2]
[378490321,1754886646290,-400.0,0.00016999,2]
[378490322,1754886646300,-500.0,0.00016999,2]
[378490323,1754886646309,-500.0,0.00016999,2]
[378490324,1754886646319,-500.0,0.00016999,2]
[378490325,1754886646328,-500.0,0.00016999,2]
[378490326,1754886646338,-578.65063624,0.00016999,2]
[378490327,1754886646347,-400.0,0.00016999,2]
[378490328,1754886646356,-1061.75,0.00016999,2]
[378490329,1754886646366,-467.15037931,0.00016999,2]
[378490330,1754886646375,-400.0,0.00016999,2]
[378490331,1754886646384,-400.0,0.00016999,2]
[378490332,1754886646393,-400.0,0.00016999,2]
[378490333,1754886646402,-400.0,0.00016999,2]
[378490334,1754886646412,-300.0,0.00016999,2]
[378490335,1754886646422,-400.0,0.00016999,2]
[378490336,1754886646431,-527.12347248,0.00016999,2]
[378490337,1754886646440,-403.15500832,0.00016999,2]
[378490338,1754886646450,-400.0,0.00016999,2]
[378490339,1754886646459,-914.47,0.00016999,2]
[378490340,1754886646469,-400.0,0.00016999,2]
[378490341,1754886646478,-2216.94,0.00016999,2]
[378490342,1754886646487,-400.0,0.00016999,2]
[378490343,1754886646496,-400.0,0.00016999,2]
[378490344,1754886646506,-492.53650154,0.00016999,2]
[378490345,1754886646515,-461.66410071,0.00016999,2]
[378490346,1754886646524,-504.42,0.00016999,2]
[378490347,1754886646533,-400.0,0.00016999,2]
[378490348,1754886646543,-400.0,0.00016999,2]
[378490349,1754886646552,-852.11,0.00016999,2]
[378490350,1754886646561,-400.0,0.00016999,2]
[378490351,1754886646570,-929.86,0.00016999,2]
[378490352,1754886646583,-2132.0,0.00016999,2]
[378490353,1754886646592,-1043.97,0.00016999,2]
[378490354,1754886646602,-1784.51,0.00016999,2]
[378490355,1754886646611,-400.0,0.00016999,2]
[378490356,1754886646621,-400.0,0.00016999,2]
[378490357,1754886646630,-1951.39,0.00016999,2]
[378490358,1754886646639,-400.0,0.00016999,2]
[378490359,1754886646648,-400.0,0.00016999,2]
[378490360,1754886646658,-400.0,0.00016999,2]
[378490361,1754886646667,-2489.93,0.00016999,2]
[378490362,1754886646677,-466.31,0.00016999,2]
[378490363,1754886646686,-1184.34,0.00016999,2]
[378490364,1754886646695,-400.0,0.00016999,2]
[378490365,1754886646704,-400.0,0.00016999,2]
[378490366,1754886646714,-933.41,0.00016999,2]
[378490367,1754886646724,-937.87,0.00016999,2]
[378490368,1754886646734,-673.61,0.00016999,2]
[378490369,1754886646744,-400.0,0.00016999,2]
[378490370,1754886646754,-400.0,0.00016999,2]
[378490371,1754886646763,-400.0,0.00016999,2]
[378490372,1754886646773,-400.919969,0.00016999,2]
[378490373,1754886646782,-400.0,0.00016999,2]
[378490374,1754886646791,-2511.12,0.00016999,2]
[378490375,1754886646802,-400.0,0.00016999,2]
[378490376,1754886646811,-500.0,0.00016999,2]
[378490377,1754886646821,-500.0,0.00016999,2]
[378490378,1754886646831,-400.0,0.00016999,2]
[378490379,1754886646840,-500.0,0.00016999,2]
[378490380,1754886646850,-500.0,0.00016999,2]
[378490381,1754886646859,-500.0,0.00016999,2]
[378490382,1754886646869,-500.0,0.00016999,2]
[378490383,1754886646878,-1694.6,0.00016999,2]
[378490384,1754886646888,-500.0,0.00016999,2]
[378490385,1754886646897,-500.0,0.00016999,2]
[378490386,1754886646907,-400.0,0.00016999,2]
[378490387,1754886646916,-400.0,0.00016999,2]
[378490388,1754886646926,-500.0,0.00016999,2]
[378490389,1754886646935,-400.0,0.00016999,2]
[378490390,1754886646945,-500.0,0.00016999,2]
[378490391,1754886646954,-400.58856298,0.00016999,2]
[378490392,1754886646964,-500.0,0.00016999,2]
[378490393,1754886646973,-500.0,0.00016999,2]
[378490394,1754886646983,-500.0,0.00016999,2]
[378490395,1754886646992,-500.0,0.00016999,2]
[378490396,1754886647002,-400.0,0.00016999,2]
[378490397,1754886647012,-471.5,0.00016999,2]
[378490398,1754886647021,-500.0,0.00016999,2]
[378490399,1754886647032,-500.0,0.00016999,2]
[378490400,1754886647043,-400.0,0.00016999,2]
[378490401,1754886647054,-500.0,0.00016999,2]
[378490402,1754886647063,-500.0,0.00016999,2]
[378490403,1754886647074,-500.0,0.00016999,2]
[378490404,1754886647084,-500.0,0.00016999,2]
[378490405,1754886647094,-400.0,0.00016999,2]
[378490406,1754886647104,-500.0,0.00016999,2]
[378490407,1754886647114,-500.0,0.00016999,2]
[378490408,1754886647123,-500.0,0.00016999,2]
[378490409,1754886647134,-163.89120964,0.00016999,2]
[378490410,1754886647143,-1957.86,0.00016999,2]
[378490411,1754886647153,-501.92201324,0.00016999,2]
[378490412,1754886647163,-844.51,0.00016999,2]
[378490413,1754886647172,-2350.99,0.00016999,2]
[378490414,1754886647182,-400.0,0.00016999,2]
[378490415,1754886647192,-3867.29,0.00016999,2]
[378490416,1754886647201,-2350.99,0.00016999,2]
[378490417,1754886647211,-2350.99,0.00016999,2]
[378490418,1754886647221,-2350.99,0.00016999,2]
[378490419,1754886647231,-2350.99,0.00016999,2]
[378490420,1754886647242,-2350.99,0.00016999,2]
[378490421,1754886647252,-2350.99,0.00016999,2]
[378490422,1754886647262,-2350.99,0.00016999,2]
[378490423,1754886647272,-2350.99,0.00016999,2]
[378490424,1754886647281,-2350.99,0.00016999,2]
[378490425,1754886647291,-475.7698205,0.00016999,2]
[378490426,1754886647301,-2350.99,0.00016999,2]
[378490427,1754886647310,-400.0,0.00016999,2]
[378490428,1754886647320,-2350.99,0.00016999,2]
[378490429,1754886647329,-400.0,0.00016999,2]
[378490430,1754886647339,-2350.99,0.00016999,2]
[378490431,1754886647348,-2350.99,0.00016999,2]
[378490432,1754886647358,-2350.99,0.00016999,2]
[378490433,1754886647367,-2350.99,0.00016999,2]
[378490434,1754886647377,-2350.99,0.00016999,2]
[378490435,1754886647387,-420.28,0.00016999,2]
[378490436,1754886647396,-2350.99,0.00016999,2]
[378490437,1754886647407,-2350.99,0.00016999,2]
[378490438,1754886647417,-2350.99,0.00016999,2]
[378490439,1754886647428,-400.0,0.00016999,2]
[378490440,1754886647437,-2350.99,0.00016999,2]
[378490441,1754886647448,-2350.99,0.00016999,2]
[378490442,1754886647458,-2350.99,0.00016999,2]
[378490443,1754886647468,-2351.18244616,0.00016999,2]
[378490444,1754886647478,-400.0,0.00016999,2]
[378490445,1754886647487,-400.57864191,0.00016999,2]
[378490446,1754886647497,-400.0,0.00016999,2]
[378490447,1754886647508,-400.0,0.00016999,2]
[378490448,1754886647517,-1922.57,0.00016999,2]
[378490449,1754886647527,-2073.51,0.00016999,2]
[378490450,1754886647537,-2662.56,0.00016999,2]
[378490451,1754886647546,-400.0,0.00016999,2]
[378490452,1754886647556,-400.0,0.00016999,2]
[378490453,1754886647566,-400.0,0.00016999,2]
[378490454,1754886647577,-649.45,0.00016999,2]
[378490455,1754886647589,-965.39,0.00016999,2]
[378490456,1754886647599,-2303.33,0.00016999,2]
[378490457,1754886647609,-1938.9,0.00016999,2]
[378490458,1754886647620,-400.0,0.00016999,2]
[378490459,1754886647629,-400.0,0.00016999,2]
[378490460,1754886647639,-4737.79,0.00016999,2]
[378490461,1754886647648,-443.09,0.00016999,2]
[378490462,1754886647659,-465.42023738,0.00016999,2]
[378490463,1754886647669,-380.53574265,0.00016999,2]
[378490464,1754886647679,-1611.6,0.00016999,2]
[378490465,1754886647688,-400.0,0.00016999,2]
[378490466,1754886647697,-400.0,0.00016999,2]
[378490467,1754886647707,-620.19,0.00016999,2]
[378490468,1754886647716,-400.0,0.00016999,2]
[378490469,1754886647726,-400.0,0.00016999,2]
[378490470,1754886647735,-400.0,0.00016999,2]
[378490471,1754886647746,-494.05,0.00016999,2]
[378490472,1754886647756,-400.0,0.00016999,2]
[378490473,1754886647765,-400.0,0.00016999,2]
[378490474,1754886647775,-3411.58,0.00016999,2]
[378490475,1754886647785,-402.9848652,0.00016999,2]
[378490476,1754886647794,-400.0,0.00016999,2]
[378490477,1754886647804,-1364.24,0.00016999,2]
[378490478,1754886647813,-400.0,0.00016999,2]
[378490479,1754886647823,-400.0,0.00016999,2]
[378490480,1754886647832,-400.0,0.00016999,2]
[378490481,1754886647842,-400.0,0.00016999,2]
[378490482,1754886647851,-400.0,0.00016999,2]
[378490483,1754886647861,-400.0,0.00016999,2]
[378490484,1754886647871,-928.56,0.00016999,2]
[378490485,1754886647880,-734.37,0.00016999,2]
[378490486,1754886647889,-400.0,0.00016999,2]
[378490487,1754886647899,-400.0,0.00016999,2]
[378490488,1754886647909,-453.0,0.00016999,2]
[378490489,1754886647919,-1639.26,0.00016999,2]
[378490490,1754886647929,-400.0,0.00016999,2]
[378490491,1754886647940,-400.0,0.00016999,2]
[378490492,1754886647950,-964.97,0.00016999,2]
[378490493,1754886647959,-400.0,0.00016999,2]
[378490494,1754886647969,-2514.27,0.00016999,2]
[378490495,1754886647978,-400.0,0.00016999,2]
[378490496,1754886647988,-400.0,0.00016999,2]
[378490497,1754886647999,-400.0,0.00016999,2]
[378490498,1754886648009,-426.85,0.00016999,2]
[378490499,1754886648019,-1646.59,0.00016999,2]
[378490500,1754886648028,-566.96,0.00016999,2]
[378490501,1754886648038,-460.0,0.00016999,2]
[378490502,1754886648048,-4613.12,0.00016999,2]
[378490503,1754886648057,-489.19,0.00016999,2]
[378490504,1754886648067,-400.0,0.00016999,2]
[378490505,1754886648077,-990.1,0.00016999,2]
[378490506,1754886648087,-1627.5,0.00016999,2]
[378490507,1754886648097,-1052.13,0.00016999,2]
[378490508,1754886648107,-400.0,0.00016999,2]
[378490509,1754886648116,-1864.85,0.00016999,2]
[378490510,1754886648126,-403.47150873,0.00016999,2]
[378490511,1754886648136,-1421.55,0.00016999,2]
[378490512,1754886648146,-400.0,0.00016999,2]
[378490513,1754886648156,-400.0,0.00016999,2]
[378490514,1754886648166,-507.87447138,0.00016999,2]
[378490515,1754886648176,-400.0,0.00016999,2]
[378490516,1754886648187,-400.0,0.00016999,2]
[378490517,1754886648197,-667.49,0.00016999,2]
[378490518,1754886648207,-415.00270403,0.00016999,2]
[378490519,1754886648217,-400.0,0.00016999,2]
[378490520,1754886648227,-400.0,0.00016999,2]
[378490521,1754886648236,-2035.68,0.00016999,2]
[378490522,1754886648246,-402.91738767,0.00016999,2]
[378490523,1754886648256,-400.0,0.00016999,2]
[378490524,1754886648266,-408.08045575,0.00016999,2]
[378490525,1754886648276,-300.0,0.00016999,2]
[378490526,1754886648287,-400.0,0.00016999,2]
[378490527,1754886648296,-400.0,0.00016999,2]
[378490528,1754886648306,-404.92154349,0.00016999,2]
[378490529,1754886648316,-400.0,0.00016999,2]
[378490530,1754886648326,-2455.42,0.00016999,2]
[378490531,1754886648336,-963.99,0.00016999,2]
[378490532,1754886648345,-400.0,0.00016999,2]
[378490533,1754886648356,-400.0,0.00016999,2]
[378490534,1754886648366,-400.0,0.00016999,2]
[378490535,1754886648376,-1921.78,0.00016999,2]
[378490536,1754886648386,-400.0,0.00016999,2]
[378490537,1754886648395,-411.06453621,0.00016999,2]
[378490538,1754886648405,-402.08215763,0.00016999,2]
[378490539,1754886648415,-400.0,0.00016999,2]
[378490540,1754886648425,-522.31034555,0.00016999,2]
[378490541,1754886648434,-857.46,0.00016999,2]
[378490542,1754886648443,-400.0,0.00016999,2]
[378490543,1754886648453,-401.02107694,0.00016999,2]
[378490544,1754886648463,-1592.26,0.00016999,2]
[378490545,1754886648472,-400.0,0.00016999,2]
[378490546,1754886648481,-7913.38,0.00016999,2]
[378490547,1754886648491,-400.0,0.00016999,2]
[378490548,1754886648500,-400.0,0.00016999,2]
[378490549,1754886648510,-405.02322792,0.00016999,2]
[378490550,1754886648519,-879.48,0.00016999,2]
[378490551,1754886648529,-740.94,0.00016999,2]
[378490552,1754886648539,-400.0,0.00016999,2]
[378490553,1754886648549,-400.0,0.00016999,2]
[378490554,1754886648559,-400.0,0.00016999,2]
[378490555,1754886648568,-1614.05,0.00016999,2]
[378490556,1754886648581,-400.0,0.00016999,2]
[378490557,1754886648592,-400.0,0.00016999,2]
[378490558,1754886648602,-565.32,0.00016999,2]
[378490559,1754886648611,-403.59,0.00016999,2]
[378490560,1754886648621,-400.0,0.00016999,2]
[378490561,1754886648631,-2321.56,0.00016999,2]
[378490562,1754886648641,-839.55,0.00016999,2]
[378490563,1754886648651,-290.9680933,0.00016999,2]
[378490564,1754886648661,-504.78,0.00016999,2]
[378490565,1754886648671,-639.29,0.00016999,2]
[378490566,1754886648681,-1629.58,0.00016999,2]
[378490567,1754886648691,-1323.73,0.00016999,2]
[378490568,1754886648701,-939.98,0.00016999,2]
[378490569,1754886648711,-400.0,0.00016999,2]
[378490570,1754886648720,-1738.72,0.00016999,2]
[378490571,1754886648730,-400.0,0.00016999,2]
[378490572,1754886648739,-400.0,0.00016999,2]
[378490573,1754886648751,-400.0,0.00016999,2]
[378490574,1754886648762,-400.0,0.00016999,2]
[378490575,1754886648771,-2334.26,0.00016999,2]
[378490576,1754886648781,-400.0,0.00016999,2]
[378490577,1754886648791,-400.0,0.00016999,2]
[378490578,1754886648800,-400.0,0.00016999,2]
[378490579,1754886648810,-400.0,0.00016999,2]
[378490580,1754886648820,-2203.02,0.00016999,2]
[378490581,1754886648830,-368.56003411,0.00016999,2]
[378490582,1754886648840,-401.05143,0.00016999,2]
[378490583,1754886648850,-400.0,0.00016999,2]
[378490584,1754886648860,-400.0,0.00016999,2]
[378490585,1754886648870,-866.1,0.00016999,2]
[378490586,1754886649142,-400.0,0.00016999,2]
[378490587,1754886649152,-454.63,0.00016999,2]
[378490588,1754886649167,-400.0,0.00016999,2]
[378490589,1754886649177,-590.93,0.00016999,2]
[378490590,1754886649186,-1370.62,0.00016999,2]
[378490591,1754886649197,-400.0,0.00016999,2]
[378490592,1754886649207,-400.0,0.00016999,2]
[378490593,1754886649216,-428.1,0.00016999,2]
[378490594,1754886649226,-400.0,0.00016999,2]
[378490595,1754886649236,-792.73,0.00016999,2]
[378490596,1754886649245,-400.0,0.00016999,2]
[378490597,1754886649255,-400.0,0.00016999,2]
[378490598,1754886649265,-400.0,0.00016999,2]
[378490599,1754886649275,-1841.0,0.00016999,2]
[378490600,1754886649285,-400.0,0.00016999,2]
[378490601,1754886649294,-446.28280575,0.00016999,2]
[378490602,1754886649304,-822.77,0.00016999,2]
[378490603,1754886649314,-400.41475505,0.00016999,2]
[378490604,1754886649323,-1944.13,0.00016999,2]
[378490605,1754886649334,-400.0,0.00016999,2]
[378490606,1754886649343,-400.0,0.00016999,2]
[378490607,1754886649353,-400.0,0.00016999,2]
[378490608,1754886649363,-621.88,0.00016999,2]
[378490609,1754886649373,-400.0,0.00016999,2]
[378490610,1754886649383,-404.55063894,0.00016999,2]
[378490611,1754886649393,-3548.7,0.00016999,2]
[378490612,1754886649402,-400.0,0.00016999,2]
[378490613,1754886649413,-808.04,0.00016999,2]
[378490614,1754886649423,-406.56047495,0.00016999,2]
[378490615,1754886649436,-400.0,0.00016999,2]
[378490616,1754886649445,-400.0,0.00016999,2]
[378490617,1754886649455,-400.0,0.00016999,2]
[378490618,1754886649465,-1925.87,0.00016999,2]
[378490619,1754886649474,-622.61717546,0.00016999,2]
[378490620,1754886649484,-421.99,0.00016999,2]
[378490621,1754886649494,-1150.74,0.00016999,2]
[378490622,1754886649503,-1979.32,0.00016999,2]
[378490623,1754886649513,-431.67833088,0.00016999,2]
[378490624,1754886649522,-400.0,0.00016999,2]
[378490625,1754886649532,-400.0,0.00016999,2]
[378490626,1754886649542,-499.88,0.00016999,2]
[378490627,1754886649551,-1899.18,0.00016999,2]
[378490628,1754886649561,-1899.18,0.00016999,2]
[378490629,1754886649571,-400.0,0.00016999,2]
[378490630,1754886649583,-1899.18,0.00016999,2]
[378490631,1754886649592,-1899.18,0.00016999,2]
[378490632,1754886649602,-1899.18,0.00016999,2]
[378490633,1754886649611,-1899.18,0.00016999,2]
[378490634,1754886649622,-1899.18,0.00016999,2]
[378490635,1754886649631,-436.14,0.00016999,2]
[378490636,1754886649641,-1899.18,0.00016999,2]
[378490637,1754886649650,-1899.18,0.00016999,2]
[378490638,1754886649663,-1899.18,0.00016999,2]
[378490639,1754886649673,-1899.18,0.00016999,2]
[378490640,1754886649682,-1899.18,0.00016999,2]
[378490641,1754886649692,-1899.18,0.00016999,2]
[378490642,1754886649702,-1899.18,0.00016999,2]
[378490643,1754886649711,-1899.18,0.00016999,2]
[378490644,1754886649723,-1899.18,0.00016999,2]
[378490645,1754886649734,-450.76,0.00016999,2]
[378490646,1754886649743,-1899.18,0.00016999,2]
[378490647,1754886649753,-1899.18,0.00016999,2]
[378490648,1754886649762,-1899.18,0.00016999,2]
[378490649,1754886649772,-1899.18,0.00016999,2]
[378490650,1754886649781,-400.0,0.00016999,2]
[378490651,1754886649791,-848.85,0.00016999,2]
[378490652,1754886649800,-400.0,0.00016999,2]
[378490653,1754886649809,-400.0,0.00016999,2]
[378490654,1754886649818,-400.0,0.00016999,2]
[378490655,1754886649828,-1899.30166308,0.00016999,2]
[378490656,1754886649837,-400.0,0.00016999,2]
[378490657,1754886649847,-5480.49,0.00016999,2]
[378490658,1754886649857,-449.78,0.00016999,2]
[378490659,1754886649866,-5480.49,0.00016999,2]
[378490660,1754886649876,-4500.31,0.00016999,2]
[378490661,1754886649885,-5480.49,0.00016999,2]
[378490662,1754886649895,-5480.49,0.00016999,2]
[378490663,1754886649905,-5480.49,0.00016999,2]
[378490664,1754886649914,-5480.49,0.00016999,2]
[378490665,1754886649924,-473.7326058,0.00016999,2]
[378490666,1754886649933,-5480.49,0.00016999,2]
[378490667,1754886649943,-5480.49,0.00016999,2]
[378490668,1754886649952,-400.0,0.00016999,2]
[378490669,1754886649962,-400.0,0.00016999,2]
[378490670,1754886649971,-1272.95,0.00016999,2]
[378490671,1754886649981,-5480.49,0.00016999,2]
[378490672,1754886649990,-5480.49,0.00016999,2]
[378490673,1754886650000,-5480.49,0.00016999,2]
[378490674,1754886650010,-5480.49,0.00016999,2]
[378490675,1754886650019,-5480.49,0.00016999,2]
[378490676,1754886650029,-5480.49,0.00016999,2]
[378490677,1754886650038,-5480.49,0.00016999,2]
[378490678,1754886650048,-2845.53,0.00016999,2]
[378490679,1754886650057,-400.0,0.00016999,2]
[378490680,1754886650067,-5480.49,0.00016999,2]
[378490681,1754886650077,-5480.49,0.00016999,2]
[378490682,1754886650086,-5480.49,0.00016999,2]
[378490683,1754886650096,-5480.49,0.00016999,2]
[378490684,1754886650105,-5480.49,0.00016999,2]
[378490685,1754886650115,-5480.49,0.00016999,2]
[378490686,1754886650124,-400.0,0.00016999,2]
[378490687,1754886650134,-2568.52,0.00016999,2]
[378490688,1754886650144,-5480.49,0.00016999,2]
[378490689,1754886650154,-5480.49,0.00016999,2]
[378490690,1754886650164,-5480.71400357,0.00016999,2]
[378490691,1754886650174,-906.0,0.00016999,2]
[378490692,1754886650184,-400.0,0.00016999,2]